Workbook

Sheet 4YrValue
I11: _ | J11: ___ | L11: ___
A12: Inputs | B12: 0 | C12: 1 | D12: 2 | E12: 3 | F12: 4 | G12: 5 | H12: 6 | J12: Click here
A13: Horizon year | B13: 4 | J13: 1
A14: Book value per share: b0 | B14: 10 | J14: =J13+1 -> 2
A15: Cost of equity or discount rate: re | B15: 0.09 | J15: =J14+1 -> 3
A16: Perpetual growth in residual earnings: g | B16: 0.01491698708 | J16: =J15+1 -> 4
A17: Earnings per share: et | B17: NA | C17: =B14*15% -> 1.5 | D17: =C17*(1+7%) -> 1.605 | E17: =D17*(1+7%) -> 1.71735 | F17: =E17*(1+7%) -> 1.8375645 | J17: =J16+1 -> 5
A18: Dividend payout as % of earnings [payout] | B18: NA | C18: 0.6 | D18: =C18 -> 0.6 | E18: =D18 -> 0.6 | F18: =C18 -> 0.6 | G18: =F18 -> 0.6 | H18: =G18 -> 0.6 | J18: =J17+1 -> 6
A20: Financial statements | B20: =B12 -> 0 | C20: =C12 -> 1 | D20: 2 | E20: 3 | F20: 4 | G20: 5 | H20: 6
A21: Earnings per share: et | B21: =B17 -> NA | C21: =C17 -> 1.5 | D21: =D17 -> 1.605 | E21: =E17 -> 1.71735 | F21: =F17 -> 1.8375645 | G21: =G25+G24 -> 1.915112802 | H21: =H25+H24 -> 1.995622836 | J21: =J18+1 -> 7 | L21: =L24+1 -> 15
A22: Dividends per share: dt | B22: =B18 -> NA | C22: =C21*C18 -> 0.9 | D22: 0.963 | E22: 1.03041 | F22: 1.1025387 | G22: 1.149067681 | H22: 1.197373702 | J22: =J21+1 -> 8 | L22: =L21+1 -> 16
A23: Ending book value per share: bt | B23: =B14 -> 10 | C23: =B23+C17-C22 -> 10.6 | D23: =C23+D17-D22 -> 11.242 | E23: =D23+E17-E22 -> 11.92894 | F23: =E23+F17-F22 -> 12.6639658 | G23: =F23+G21-G22 -> 13.43001092 | H23: =G23+H21-H22 -> 14.22826006 | J23: =J22+1 -> 9 | K23: =J23+1 -> 10 | L23: =L22+1 -> 17
A24: Charge for equity: cost of equity*previous ending book value = re * bt-1 | C24: =$B$15*B23 -> 0.9 | D24: 0.954 | E24: 1.01178 | F24: 1.0736046 | G24: 1.139756922 | H24: 1.208700983 | J24: =K23+1 -> 11 | L24: =L25+1 -> 14
A25: Residual earnings per share: rest = et - re * bt-1 | B25: NA | C25: =C21-($B$15*B23) -> 0.6 | D25: =D21-($B$15*C23) -> 0.651 | E25: =E21-($B$15*D23) -> 0.70557 | F25: =F21-($B$15*E23) -> 0.7639599 | G25: =F25*(1+$B$16) -> 0.77535588 | H25: =G25*(1+$B$16) -> 0.7869218536 | J25: =J24+1 -> 12 | L25: =J25+1 -> 13
A26: Growth rates and returns | B26: =B12 -> 0 | C26: 1 | D26: 2 | E26: 3 | F26: 4 | G26: 5 | H26: 6
A27: Earnings growth rate | D27: =D21/C21-1 -> 0.07 | E27: 0.07 | F27: 0.07 | G27: =G21/F21-1 -> 0.04220167616 | H27: 0.04203931718 | J27: =L23+1 -> 18
A28: Dividends growth rate | D28: 0.07 | E28: 0.07 | F28: 0.07 | G28: 0.04220167616 | H28: 0.04203931718 | J28: =J27+1 -> 19
A29: Book value growth rate | C29: =C23/B23-1 -> 0.06 | D29: 0.06056603774 | E29: 0.06110478563 | F29: 0.06161702549 | G29: 0.06049014447 | H29: 0.05943771299 | J29: =J28+1 -> 20
A30: Residual earnings growth rate | D30: =IF(AND(C25=0,D25=0),0,D25/C25-1) -> 0.085 | E30: =IF(AND(D25=0,E25=0),0,E25/D25-1) -> 0.08382488479 | F30: =IF(AND(E25=0,F25=0),0,F25/E25-1) -> 0.08275564437 | G30: =IF(AND(F25=0,G25=0),0,G25/F25-1) -> 0.01491698708 | H30: =IF(AND(G25=0,H25=0),0,H25/G25-1) -> 0.01491698708 | J30: =J29+1 -> 21
A31: Forward return on equity = Forthcoming eps/current bps [ROE] | B31: NA | C31: =C21/B23 -> 0.15 | D31: 0.1514150943 | E31: 0.1527619641 | F31: 0.1540425637 | G31: 0.1512253612 | H31: 0.1485942825 | J31: =J30+1 -> 22
A32: Intermediate computations: You may skip these
A33: Terminal value computation | B33: =B12 -> 0 | C33: 1 | D33: 2 | E33: 3 | F33: 4 | G33: 5 | H33: 6
A34: Book value of equity at the end of the year | F34: =F23 -> 12.6639658 | J34: =J31+1 -> 23
A35: + PV of residual earnings at the end of the year | F35: =G25/(B15-H30) -> 10.32664846 | J35: =J34+1 -> 24
A36: = Terminal value per share | F36: =SUM(F34:F35) -> 22.99061426 | J36: =J35+1 -> 25
A37: Alternate computation of terminal value: Theoretical, skip
A38: DPS for perpetual growth = EPS - perpetual growth rate in bt * bt | G38: =G21-B16*F23 -> 1.726204588 | J38: =J36+1 -> 26
A39: Terminal value = PV of future DPS growing at the perpetual growth rate = dt/(re- g) | F39: =G38/(B15-B16) -> 22.99061426 | J39: =J38+1 -> 27
A40: Capitalized change in dividends: Change in dividends/re = (dt - dt-1)/re | C40: 0 | D40: =(D22-C22)/$B$15 -> 0.7 | E40: =(E22-D22)/$B$15 -> 0.749 | F40: =(F22-E22)/$B$15 -> 0.80143 | G40: =(G22-F22)/$B$15 -> 0.5169886797 | H40: =(H22-G22)/$B$15 -> 0.5367335634 | J40: =J39+1 -> 28
A41: End of intermediate computation
A44: Valuation | B44: =B12 -> 0
A45: Baseline: Discounted dividends Model | C45: % of Value
A46: Anchor: None | B46: 0 | C46: =B46/$B$49 -> 0 | J46: =J40+1 -> 29
A47: + Until horizon: PV of dividends until the horizon | B47: =NPV(B15,C22:F22) -> 3.212957698 | C47: =B47/$B$49 -> 0.164766314 | J47: =J46+1 -> 30
A48: + Beyond the horizon: PV of terminal value | B48: =F36/(1+B15)^B13 -> 16.28713076 | C48: =B48/$B$49 -> 0.835233686 | J48: =J47+1 -> 31
A49: = Total equity value | B49: =SUM(B46:B48) -> 19.50008846 | C49: =SUM(C47:C48) -> 1 | J49: =J48+1 -> 32
A50: Connecting to valuation anchors | B50: =B12 -> 0
A51: I: Dividend yield: Dividend growth model
A52: Anchor: Capitalized forthcoming dividends | B52: =C22/B15 -> 10 | C52: =B52/$B$55 -> 0.5128181865 | J52: =J49+1 -> 33
A53: + Until horizon: PV of capitalized change in dividends until the horizon | B53: =NPV(B15,C40:F40) -> 1.735294639 | C53: =B53/$B$55 -> 0.08898906497 | J53: =J52+1 -> 34
A54: + Beyond the horizon: PV of capitalized change in dividends beyond the horizon | B54: =B49-SUM(B52:B53) -> 7.764793821 | C54: =B54/$B$55 -> 0.3981927486 | J54: =J53+1 -> 35
A55: = Total equity value | B55: =SUM(B52:B54) -> 19.50008846 | C55: =SUM(C52:C54) -> 1 | J55: =J54+1 -> 36
A56: II: Price to book: Book value growth model [RIV] | C56: % of Value
A57: Anchor: Current book value | B57: =B14 -> 10 | C57: =B57/$B$61 -> 0.5128181865 | J57: =J55+1 -> 37
A58: + Until horizon: PV of residual change in book value for the first 2 years | B58: =NPV(B15,C25:F25) -> 2.184430343 | C58: =B58/$B$61 -> 0.1120215607 | J58: =J57+1 -> 38
A59: [Note: Residual change in book value = residual earnings]
A60: + Beyond the horizon: PV of residual change in book value beyond 2 years | B60: =F35/(1+B15)^B13 -> 7.315658117 | C60: =B60/$B$61 -> 0.3751602528 | J60: =J58+1 -> 39
A61: = Total equity value | B61: =B57+B58+B60 -> 19.50008846 | C61: =SUM(C57:C60) -> 1 | J61: =J60+1 -> 40
A62: Intermediate computations: You may skip these | B62: =B12 -> 0 | C62: 1 | D62: 2 | E62: 3 | F62: 4 | G62: 5 | H62: 6
A63: Change in earnings [et - et-1] | D63: =D21-C21 -> 0.105 | E63: =E21-D21 -> 0.11235 | F63: =F21-E21 -> 0.1202145 | G63: =G21-F21 -> 0.07754830196 | H63: =H21-G21 -> 0.08051003451 | J63: =J61+1 -> 41
A64: Reinvestment at the end of the previous year: et-1 - dt-1 | C64: =C21-C22 -> 0.6 | D64: 0.642 | E64: 0.68694 | F64: 0.7350258 | G64: 0.7660451208 | H64: 0.7982491346 | J64: =J63+1 -> 42
A65: Change in earnings if reinvestment yields cost of equity [=re*(et-1 - dt-1)] | D65: =C64*$B$15 -> 0.054 | E65: =D64*$B$15 -> 0.05778 | F65: =E64*$B$15 -> 0.0618246 | G65: =F64*$B$15 -> 0.066152322 | H65: =G64*$B$15 -> 0.06894406087 | J65: =J64+1 -> 43
A66: Residual change in earnings [=(et - et-1) - re*(et-1 - dt-1)]
A67: [i.e., actual change in earnings - change in earnings from normal return on reinvestment] | D67: =D63-D65 -> 0.051 | E67: =E63-E65 -> 0.05457 | F67: =F63-F65 -> 0.0583899 | G67: =G63-G65 -> 0.01139597996 | H67: =H63-H65 -> 0.01156597364 | J67: =J65+1 -> 44
A68: Not used: Just for checking
A69: Change in residual earnings ['(et - re*bt-1)- (et-1 - re*bt-2)] | D69: =D25-C25 -> 0.051 | E69: =E25-D25 -> 0.05457 | F69: =F25-E25 -> 0.0583899 | G69: =G25-F25 -> 0.01139597996 | H69: =H25-G25 -> 0.01156597364 | J69: =J67+1 -> 45
A70: Check: Residual change in earnings = Change in residual earnings | B70: =B67-B69 -> 0 | C70: 0 | D70: 0 | E70: 1.665334537e-16 | F70: 0 | G70: -1.387778781e-17 | H70: -1.387778781e-17 | J70: =J69+1 -> 46
A71: Growth rate of residual change in earnings | G71: =IF(AND(F69=0,G69=0),0,G69/F69-1) -> -0.8048296031 | H71: =IF(AND(G69=0,H69=0),0,H69/G69-1) -> 0.01491698708 | J71: 47
A72: Value added each year: Capitalized forthcoming residual change in earnings | C72: =D67/$B$15 -> 0.5666666667 | D72: =E67/$B$15 -> 0.6063333333 | E72: =F67/$B$15 -> 0.6487766667 | F72: =G67/$B$15 -> 0.1266219995 | G72: =H67/$B$15 -> 0.1285108183 | J72: 48
A73: PV of value added each year based on earnings forecasts until the horizon | B73: =NPV(B15,C72:E72) -> 1.531190936 | J73: 49
A74: Capitalized value of value added per year beyond the horizon | C74: 0 | D74: 0 | E74: =F72/(B15-B16) -> 1.686426724 | J74: 50
A75: PV of value added each year based on earnings forecasts beyond the horizon | B75: =NPV(B15,C74:E74) -> 1.302230857 | J75: 51
A76: End of intermediate computation
A77: III. Price to forward earnings: Earning growth Model [AEG] | C77: % of Value
A78: Anchor: Capitalized value of forthcoming earnings for Y1 | B78: =C21/B15 -> 16.66666667 | C78: =B78/$B$81 -> 0.8546969775 | J78: =J75+1 -> 52
A79: + Until horizon: PV of value based on earnings forecasts until the horizon | B79: =B73 -> 1.531190936 | C79: =B79/$B$81 -> 0.0785222559 | J79: =J78+1 -> 53
A80: + Beyond the horizon: PV of value based on earnings forecasts beyond the horizon | B80: =E74/(1+B15)^(B13-1) -> 1.302230857 | C80: =B80/$B$81 -> 0.06678076664 | J80: =J79+1 -> 54
A81: = Total Equity Value | B81: =SUM(B78:B80) -> 19.50008846 | C81: =SUM(C78:C80) -> 1 | J81: =J80+1 -> 55
A83: Valuation ratios | B83: =B12 -> 0
A84: Dividend yield = Forthcoming dividends/Current stock price | B84: =C22/B49 -> 0.04615363678 | J84: =J81+1 -> 56
A85: P/B ratio = Current stock price/current book value | B85: =B61/B14 -> 1.950008846 | J85: =J84+1 -> 57
A86: Forward P/E ratio = Current stock price/Forthcoming earnings | B86: =B61/C17 -> 13.00005897 | J86: =J85+1 -> 58
A87: Forward ROE = Forthcoming earnings/Current book value | B87: =C31 -> 0.15 | J87: =J86+1 -> 59
A88: Check: P/B - P/E * ROE = 0 | B88: =B85-B86*B87 -> 0 | J88: =J87+1 -> 60
A90: Reverse engineering: Inferring cost of equity OR growth | B90: =B12 -> 0
A91: Current stock price | B91: =C17*13 -> 19.5 | J91: =J88+1 -> 61
A92: Difference = Current stock price - Computed present value | B92: =B91-B61 -> -8.845948814e-05 | J92: =J91+1 -> 62
A93: Choose one of the following from the drop down box on the right and then CLICK INFER
A94: Infer cost of equity | C94: 2 | J94: =J92+1 -> 63
A95: Infer growth rate | J95: =J94+1 -> 64
A96: =IF(C94=1,"Inferred cost of equity", "Inferred growth rate")&" that sets Price = Present value " -> Inferred growth rate that sets Price = Present value | B96: =IF(C94=1,B15,B16) -> 0.01491698708 | J96: =J95+1 -> 65
